bitfinex-derivatives/quotes_BTCF0:USTF0_20240815
["timestamp","ask_amount","ask_price","bid_price","bid_amount"]
[1723723419396,0.450938,58725.0,58724.0,0.386278]
[1723723419589,0.255417,58724.0,58723.0,0.08514]
[1723723419786,0.41975159,58725.0,58721.0,0.085143]
[1723723419787,0.17029,58722.0,58721.0,0.085143]
[1723723420198,0.3064359,58722.0,58721.0,0.085143]
[1723723420400,0.255435,58722.0,58721.0,0.085143]
[1723723420699,0.17029,58720.0,58719.0,0.09488475]
[1723723420895,0.22130652,58720.0,58719.0,0.09488475]
[1723723421295,0.17029,58720.0,58719.0,0.09488475]
[1723723423001,0.085145,58720.0,58719.0,0.09488475]
[1723723423206,0.17029,58720.0,58719.0,0.09588475]
[1723723423389,0.17029,58720.0,58719.0,0.09688475]
[1723723424003,0.17129,58720.0,58719.0,0.09463475]
[1723723428502,0.17129,58720.0,58719.0,0.086146]
[1723723428708,0.086145,58720.0,58719.0,0.086146]
[1723723428896,0.17129,58720.0,58719.0,0.086146]
[1723723429299,0.086145,58720.0,58719.0,0.086146]
[1723723429712,0.086145,58720.0,58719.0,0.1704106]
[1723723429902,0.17129,58720.0,58719.0,0.086146]
[1723723430208,0.086145,58720.0,58719.0,0.086146]
[1723723430594,0.086145,58720.0,58719.0,0.171293]
[1723723430996,0.17129,58720.0,58719.0,0.171293]
[1723723431196,0.001,58720.0,58719.0,0.3407046]
[1723723431399,0.001,58720.0,58719.0,0.47043254]
[1723723431602,0.001,58720.0,58719.0,0.38616794]
[1723723433300,0.086145,58720.0,58719.0,0.38616794]
[1723723433614,0.085145,58720.0,58719.0,0.38616597]
[1723723434200,0.085145,58720.0,58719.0,0.42364354]
[1723723434611,0.085145,58720.0,58719.0,0.42264354]
[1723723434815,0.085145,58720.0,58719.0,0.42564354]
[1723723436001,0.202845,58720.0,58719.0,0.42564111]
[1723723436302,0.085145,58720.0,58719.0,0.42564111]
[1723723436814,0.202845,58720.0,58719.0,0.42464111]
[1723723437410,0.203845,58720.0,58719.0,0.42464111]
[1723723437716,0.203845,58720.0,58719.0,0.42264111]
[1723723437913,0.203845,58720.0,58719.0,0.42364111]
[1723723440120,0.203845,58720.0,58719.0,0.42364115]
[1723723440507,0.203845,58720.0,58719.0,0.42364126]
[1723723440908,0.203845,58720.0,58719.0,0.33849426]
[1723723442112,0.203845,58720.0,58719.0,0.43902026]
[1723723442507,0.1187,58720.0,58719.0,0.52416726]
[1723723442816,0.001,58720.0,58719.0,0.54134126]
[1723723443017,0.086145,58720.0,58719.0,0.55759025]
[1723723443212,0.086145,58720.0,58719.0,0.64273725]
[1723723443521,0.086145,58720.0,58719.0,0.43991992]
[1723723443522,0.17129,58720.0,58719.0,0.43991992]
[1723723443816,0.256435,58720.0,58719.0,0.25334541]
[1723723444217,0.256435,58720.0,58719.0,0.16819941]
[1723723444433,0.47158,58720.0,58719.0,0.001]
[1723723445917,0.76598,58720.0,58719.0,0.001]
[1723723446116,0.76598,58720.0,58719.0,0.06862989]
[1723723446117,0.7756702,58720.0,58719.0,0.06862989]
[1723723446823,0.7756702,58720.0,58719.0,0.001]
[1723723448118,0.82671206,58720.0,58719.0,0.001]
[1723723448513,0.255444,58718.0,58717.0,0.06762989]
[1723723448713,0.616244,58718.0,58717.0,0.06762989]
[1723723449924,0.736244,58718.0,58717.0,0.06762989]
[1723723450307,0.736244,58718.0,58717.0,0.06862989]
[1723723451223,0.736244,58718.0,58717.0,0.06962989]
[1723723451419,0.736244,58718.0,58717.0,0.002]
[1723723453026,0.3608,58718.0,58717.0,0.087149]
[1723723453216,0.3608,58718.0,58717.0,0.172298]
[1723723453417,0.3608,58718.0,58717.0,0.38718012]
[1723723453623,0.3608,58718.0,58717.0,0.42465937]
[1723723455117,0.085144,58721.0,58720.0,0.085145]
[1723723455317,0.085144,58721.0,58720.0,0.33675644]
[1723723455626,0.085144,58721.0,58720.0,0.44855644]
[1723723455922,0.085144,58721.0,58720.0,0.12262425]
[1723723456514,0.170288,58721.0,58720.0,0.12262425]
[1723723456821,0.172288,58721.0,58720.0,0.03747925]
[1723723457123,0.22330306,58721.0,58720.0,0.03747925]
[1723723457515,0.22430306,58721.0,58720.0,0.03747925]
[1723723457716,0.258432,58721.0,58720.0,0.03747925]
[1723723457916,0.170304,58715.0,58714.0,0.09446375]
[1723723458120,0.531104,58715.0,58714.0,0.085153]
[1723723458728,0.531104,58715.0,58712.0,0.1695875]
[1723723458729,0.17031,58713.0,58712.0,0.1695875]
[1723723458925,0.17031,58713.0,58712.0,0.085157]
[1723723459318,0.17031,58713.0,58712.0,0.09480934]
[1723723459719,0.17031,58713.0,58712.0,0.17923984]
[1723723459922,0.17031,58713.0,58712.0,0.30898535]
[1723723460117,0.17131,58713.0,58712.0,0.18323984]
[1723723460817,0.17131,58713.0,58712.0,0.09880934]
[1723723461323,0.086155,58713.0,58712.0,0.09880934]
[1723723462021,0.087155,58713.0,58712.0,0.09980934]
[1723723462225,0.087155,58713.0,58712.0,0.18423984]
[1723723463127,0.087155,58713.0,58712.0,0.26939684]
[1723723463325,0.002,58713.0,58712.0,0.48429694]
[1723723463822,0.002,58713.0,58712.0,0.39986644]
[1723723464019,0.002,58713.0,58712.0,0.43734946]
[1723723464225,0.002,58713.0,58712.0,0.79814946]
[1723723464433,0.085153,58715.0,58714.0,0.170305]
[1723723464628,0.085153,58715.0,58714.0,0.3000481]
[1723723465029,0.085153,58715.0,58714.0,0.33752896]
[1723723465217,0.085153,58715.0,58714.0,0.33752892]
[1723723465420,0.085153,58715.0,58714.0,0.38444699]
[1723723465621,0.086153,58715.0,58714.0,0.30104272]
[1723723465831,0.087153,58715.0,58714.0,0.30504272]
[1723723466034,0.087153,58715.0,58714.0,0.34252335]
[1723723466430,0.087153,58715.0,58714.0,0.30504272]
[1723723466831,0.087153,58715.0,58714.0,0.34252377]
[1723723467222,0.087153,58715.0,58714.0,0.30504272]
[1723723467623,0.087153,58715.0,58714.0,0.34252325]
[1723723467828,0.002,58715.0,58714.0,0.42767725]
[1723723468021,0.002,58715.0,58714.0,0.39019672]
[1723723468224,0.087152,58715.0,58714.0,0.42767805]
[1723723468426,0.087152,58715.0,58714.0,0.39019672]
[1723723468826,0.172304,58715.0,58714.0,0.30431406]
[1723723469024,0.172304,58715.0,58714.0,0.090151]
[1723723469228,0.172304,58715.0,58714.0,0.17457634]
[1723723469432,0.172304,58715.0,58714.0,0.090151]
[1723723471225,0.172304,58715.0,58714.0,0.30431409]
[1723723471430,0.172304,58715.0,58714.0,0.17457634]
[1723723471631,0.172304,58715.0,58714.0,0.090151]
[1723723473024,0.087152,58715.0,58714.0,0.17457634]
[1723723473235,0.087152,58715.0,58714.0,0.38947032]
[1723723473428,0.087152,58715.0,58714.0,0.30504498]
[1723723474328,0.087152,58715.0,58714.0,0.25736637]
[1723723474529,0.172304,58715.0,58714.0,0.30437401]
[1723723474826,0.002,58715.0,58714.0,0.39020451]
[1723723475026,0.087152,58715.0,58714.0,0.30505051]
[1723723475228,0.087152,58715.0,58714.0,0.175305]
[1723723475437,0.087152,58715.0,58714.0,0.34252525]
[1723723475631,0.087152,58715.0,58714.0,0.30504374]
[1723723475833,0.087152,58715.0,58714.0,0.34252518]
[1723723476028,0.087152,58715.0,58714.0,0.30504374]
[1723723476543,0.087152,58715.0,58714.0,0.34252504]
[1723723476731,0.087152,58715.0,58714.0,0.42767904]
[1723723476927,0.002,58715.0,58714.0,0.42767904]
[1723723477140,0.087152,58715.0,58714.0,0.61379774]
[1723723477343,0.087152,58715.0,58714.0,0.6512785]
[1723723477535,0.087152,58715.0,58714.0,0.5661245]
[1723723478043,0.002,58715.0,58714.0,0.61379774]
[1723723478436,0.002,58715.0,58714.0,0.7525697]
[1723723478639,0.002,58715.0,58714.0,0.65127843]
[1723723478844,0.002,58715.0,58714.0,0.7525697]
[1723723479045,0.087152,58715.0,58714.0,0.6674157]
[1723723479342,0.087152,58715.0,58714.0,0.56612443]
[1723723479531,0.087152,58715.0,58714.0,0.52864374]
[1723723479736,0.087152,58715.0,58714.0,0.56612465]
[1723723479944,0.087152,58715.0,58714.0,0.61379774]
[1723723480141,0.087152,58715.0,58714.0,0.5661246]
[1723723480345,0.087152,58715.0,58714.0,0.6512786]
[1723723481139,0.087152,58715.0,58714.0,0.52864374]
[1723723481338,0.087152,58715.0,58714.0,0.56612453]
[1723723482752,0.087152,58715.0,58714.0,0.45572453]
[1723723483455,0.087152,58715.0,58714.0,0.42767855]
[1723723483641,0.087152,58715.0,58714.0,0.34252455]
[1723723485546,0.002,58715.0,58714.0,0.51283255]
[1723723485744,0.08514,58724.0,58723.0,0.170282]
[1723723485745,0.085139,58724.0,58723.0,0.170282]
[1723723485944,0.05101891,58725.0,58724.0,0.085139]
[1723723486146,0.13615591,58726.0,58725.0,0.085138]
[1723723486548,0.085137,58726.0,58725.0,0.170276]
[1723723487852,0.091137,58726.0,58725.0,0.170276]
[1723723488852,0.176274,58726.0,58725.0,0.085138]
[1723723489154,0.091137,58726.0,58725.0,0.085138]
[1723723489549,0.269411,58726.0,58725.0,0.001]
[1723723489755,0.184274,58726.0,58725.0,0.15375117]
[1723723490352,0.178274,58726.0,58725.0,0.06861317]
[1723723490555,0.182274,58726.0,58725.0,0.06861317]
[1723723491054,0.267411,58726.0,58725.0,0.06861317]
[1723723491248,0.19059805,58726.0,58725.0,0.06861317]
[1723723491459,1.06116405,58726.0,58724.0,0.06761317]
[1723723491651,1.06116405,58726.0,58722.0,0.06761317]
[1723723491652,0.085139,58724.0,58722.0,0.06761317]
[1723723491849,0.255426,58722.0,58721.0,0.06761317]
[1723723492053,0.736226,58722.0,58721.0,0.06761317]
[1723723492851,1.332248,58722.0,58721.0,0.06761317]
[1723723493159,0.085155,58713.0,58710.0,0.08450022]
[1723723493348,0.170316,58711.0,58710.0,0.08450022]
[1723723493553,0.255474,58711.0,58710.0,0.03748516]
[1723723493859,0.170328,58707.0,58706.0,0.00020188]
[1723723494055,0.22137865,58707.0,58706.0,0.00020188]
[1723723494250,0.170328,58707.0,58706.0,0.00020188]
[1723723494458,0.22137865,58707.0,58706.0,0.00020188]
[1723723494658,0.170328,58707.0,58706.0,0.00020188]
[1723723495253,0.30649761,58707.0,58706.0,0.00020188]
[1723723495849,0.255492,58707.0,58706.0,0.00020188]
[1723723496556,0.30649761,58707.0,58706.0,0.00020188]
[1723723496757,0.255492,58707.0,58706.0,0.00020188]
[1723723496961,0.256492,58707.0,58706.0,0.00520188]
[1723723497171,0.257492,58707.0,58706.0,0.00820188]
[1723723498676,0.26732786,58707.0,58706.0,0.00820188]
[1723723500879,0.002,58707.0,58706.0,0.09336788]
[1723723501067,0.087164,58707.0,58706.0,0.09336788]
[1723723501376,0.002,58707.0,58706.0,0.26369988]
[1723723501576,0.002,58707.0,58706.0,1.22178783]
[1723723501779,0.002,58707.0,58706.0,1.30628805]
[1723723502575,0.002,58707.0,58706.0,1.43603913]
[1723723502784,0.002,58707.0,58706.0,0.95153891]
[1723723502980,0.001,58707.0,58706.0,1.34853891]
[1723723503175,0.002,58707.0,58706.0,0.95153891]
[1723723503375,0.002,58707.0,58706.0,1.35153891]
[1723723503578,0.002,58707.0,58706.0,0.95153891]
[1723723503978,0.002,58707.0,58706.0,0.44053891]
[1723723504386,0.002,58707.0,58706.0,0.40305268]
[1723723504581,0.002,58707.0,58706.0,1.35153717]
[1723723505485,0.3608,58712.0,58711.0,0.170316]
[1723723505486,0.085157,58712.0,58711.0,0.170316]
[1723723507183,0.085157,58712.0,58711.0,0.174316]
[1723723508283,0.086157,58712.0,58711.0,0.177316]
[1723723508594,0.001,58712.0,58711.0,0.262474]
[1723723508893,0.001,58712.0,58711.0,0.29995602]
[1723723509093,0.001,58712.0,58711.0,0.79049122]
[1723723510779,0.36105545,58717.0,58716.0,0.255453]
[1723723512383,0.00025545,58717.0,58716.0,0.29293219]
[1723723512580,0.00225545,58717.0,58716.0,0.37722706]
[1723723514095,0.00025545,58717.0,58716.0,0.74102706]
[1723723514391,0.00025545,58717.0,58716.0,0.88033161]
[1723723514596,0.00025545,58717.0,58716.0,0.88433161]
[1723723515500,0.00025545,58717.0,58716.0,0.67033038]
[1723723515798,0.00025545,58717.0,58716.0,0.75461009]
[1723723516295,0.00025545,58717.0,58716.0,0.96548461]
[1723723516595,0.00025545,58717.0,58716.0,0.67033038]
[1723723516596,0.08540545,58717.0,58716.0,0.67033038]
[1723723516794,0.08540545,58717.0,58716.0,0.18690019]
[1723723517093,0.17055545,58717.0,58716.0,0.10174919]
[1723723517496,0.17055545,58717.0,58716.0,0.092151]
[1723723519093,0.17055545,58717.0,58716.0,0.089151]
[1723723519294,0.17255545,58717.0,58716.0,0.085151]
[1723723520303,0.08740545,58717.0,58716.0,0.170302]
[1723723520687,0.08740545,58717.0,58716.0,0.29293208]
[1723723521005,0.00225545,58717.0,58716.0,0.44233271]
[1723723521297,0.00225545,58717.0,58716.0,0.60953531]
[1723723521800,0.00225545,58717.0,58716.0,0.47981062]
[1723723522098,0.00225545,58717.0,58716.0,0.39553091]
[1723723522295,0.00025545,58717.0,58716.0,0.39853102]
[1723723522503,0.00025545,58717.0,58716.0,0.61253417]
[1723723522697,0.00025545,58717.0,58716.0,0.44733271]
[1723723522892,0.00025545,58717.0,58716.0,0.48481023]
[1723723523095,0.00025545,58717.0,58716.0,0.40053052]
[1723723523494,0.00025545,58717.0,58716.0,0.48681023]
[1723723523792,0.00025545,58717.0,58716.0,0.40253052]
[1723723523993,0.00025545,58717.0,58716.0,0.48681023]
[1723723524902,0.00025545,58717.0,58716.0,0.40253052]
[1723723525097,0.00025545,58717.0,58716.0,0.48381066]
[1723723525398,0.00025545,58717.0,58716.0,0.48681062]
[1723723525589,0.00025545,58717.0,58716.0,0.44933271]
[1723723525790,0.00025545,58717.0,58716.0,0.365053]
[1723723525997,0.00025545,58717.0,58716.0,0.44933271]
[1723723526195,0.00025545,58717.0,58716.0,0.57905806]
[1723723526594,0.00025545,58717.0,58716.0,0.57505806]
[1723723526793,0.00025545,58717.0,58716.0,0.57805806]
[1723723527102,0.00025545,58717.0,58716.0,0.49377835]
[1723723527501,0.00025545,58717.0,58716.0,0.57819388]
[1723723527806,0.08540545,58717.0,58716.0,0.262453]
[1723723528306,0.08540545,58717.0,58716.0,0.47660045]
[1723723529099,0.08540545,58717.0,58716.0,0.38918492]
[1723723529294,0.08540545,58717.0,58716.0,0.39018492]
[1723723530002,0.08540545,58717.0,58716.0,0.38918492]
[1723723530501,0.17055545,58717.0,58716.0,0.21888292]
[1723723530796,0.63525545,58717.0,58716.0,0.004]
[1723723530989,0.76525545,58717.0,58716.0,0.004]
[1723723531190,0.68626106,58717.0,58716.0,0.004]
[1723723531900,0.39186106,58717.0,58716.0,0.089151]
[1723723532399,0.34285545,58717.0,58716.0,0.088151]
[1723723532591,0.39388024,58717.0,58716.0,0.088151]
[1723723532791,0.39387963,58717.0,58716.0,0.088151]
[1723723533504,0.39387963,58717.0,58716.0,0.085151]
[1723723534401,0.085155,58713.0,58712.0,0.16965991]
[1723723534591,0.085155,58713.0,58712.0,0.085156]
[1723723534801,0.255465,58713.0,58712.0,0.085156]
[1723723535397,0.255465,58713.0,58712.0,0.16965991]
[1723723535604,0.255465,58713.0,58712.0,0.17265991]
[1723723536500,0.255465,58713.0,58712.0,0.088156]
[1723723537503,0.255465,58713.0,58712.0,0.092156]
[1723723538004,0.616265,58713.0,58712.0,0.092156]
[1723723538896,0.616265,58713.0,58712.0,0.17665991]
[1723723539096,0.616265,58713.0,58712.0,0.092156]
[1723723539595,0.255465,58713.0,58712.0,0.092156]
[1723723540199,0.255465,58713.0,58712.0,0.17665991]
[1723723540903,0.05102418,58723.0,58716.0,0.085151]
[1723723541097,0.085143,58722.0,58721.0,0.170284]
[1723723541300,0.085143,58722.0,58721.0,0.29935355]
[1723723541496,0.085143,58722.0,58721.0,0.16963353]
[1723723541901,0.085143,58722.0,58721.0,0.29933234]
[1723723542201,0.445939,58727.0,58726.0,0.085137]
[1723723542601,0.44619445,58727.0,58726.0,0.085137]
[1723723543800,0.44619445,58727.0,58726.0,0.086137]
[1723723543801,0.45519445,58727.0,58726.0,0.086137]
[1723723544197,0.46219445,58727.0,58726.0,0.087137]
[1723723544597,0.46219445,58727.0,58726.0,0.09692301]
[1723723545402,0.01625545,58727.0,58726.0,0.26719701]
[1723723545694,0.01625545,58727.0,58726.0,0.43437572]
[1723723546104,0.01625545,58727.0,58726.0,0.30467079]
[1723723546307,0.01625545,58727.0,58726.0,0.43437241]
[1723723546513,0.17276041,58741.0,58726.0,0.43437241]
[1723723546514,0.05102418,58740.0,58735.0,0.085123]
[1723723546812,0.085116,58740.0,58739.0,0.085116]
[1723723547404,0.34542418,58747.0,58739.0,0.085116]
[1723723547405,0.41182418,58748.0,58739.0,1.27152]
[1723723547612,0.14450618,58756.0,58749.0,0.085103]
[1723723547902,0.085096,58755.0,58754.0,0.085096]
[1723723548409,0.4723,58759.0,58757.0,0.085092]
[1723723548410,0.3608,58759.0,58757.0,0.085092]
[1723723548613,0.05102418,58770.0,58762.0,0.085084]
[1723723548796,0.3608,58772.0,58762.0,0.085084]
[1723723548797,0.085078,58767.0,58762.0,0.085084]
[1723723548994,0.3608,58772.0,58762.0,0.13550285]
[1723723549412,0.445871,58772.0,58765.0,0.085079]
[1723723549710,0.085077,58768.0,58764.0,0.05033156]
[1723723549896,0.08533245,58768.0,58767.0,0.085076]
[1723723550409,0.00025545,58768.0,58767.0,0.085076]
[1723723550800,0.00025545,58768.0,58767.0,0.25523]
[1723723551005,0.001,58772.0,58771.0,0.170142]
[1723723551513,0.085061,58778.0,58777.0,0.085063]
[1723723552304,0.085067,58775.0,58774.0,0.085067]
[1723723553613,0.085067,58775.0,58774.0,0.087067]
[1723723553798,0.085061,58778.0,58777.0,0.085061]
[1723723554608,0.085061,58778.0,58772.0,0.00025523]
[1723723554609,0.085067,58775.0,58774.0,0.085066]
[1723723554910,0.085068,58773.0,58772.0,0.00025523]
[1723723555309,0.910404,58773.0,58772.0,0.00025523]
[1723723555615,0.085087,58760.0,58759.0,0.3608]
[1723723555824,0.085094,58756.0,58755.0,0.085092]
[1723723556410,0.085099,58753.0,58752.0,0.085098]
[1723723556614,0.2944,58754.0,58746.0,0.80294]
[1723723556804,0.2944,58754.0,58749.0,0.0001511]
[1723723556805,0.255306,58750.0,58749.0,0.0001511]
[1723723557009,0.726106,58750.0,58749.0,0.0001511]
[1723723557213,1.526746,58750.0,58749.0,0.0001511]
[1723723557918,1.526746,58750.0,58749.0,0.0111511]
[1723723558404,1.126746,58750.0,58749.0,0.0111511]
[1723723558603,1.126746,58750.0,58749.0,0.0001511]
[1723723558824,0.255327,58745.0,58744.0,0.00025523]
[1723723558998,0.7752,58745.0,58734.0,0.085124]
[1723723559199,0.085127,58735.0,58734.0,0.085124]
[1723723560008,0.00014423,58735.0,58734.0,0.085124]
[1723723560518,0.00014423,58735.0,58731.0,0.085129]
[1723723561214,0.00014423,58735.0,58734.0,0.086125]
[1723723563113,0.00014423,58735.0,58734.0,0.17125]
[1723723563613,0.00014423,58735.0,58734.0,0.17025]
[1723723563914,0.00014423,58735.0,58734.0,0.086125]
[1723723564116,0.08526723,58735.0,58734.0,0.086125]
[1723723564704,0.17139023,58735.0,58734.0,0.008]
[1723723565406,0.17339023,58735.0,58734.0,0.001]
[1723723565606,0.085126,58733.0,58732.0,0.085128]
[1723723566118,0.085131,58730.0,58729.0,0.08538623]
[1723723566515,0.170262,58730.0,58729.0,0.00025523]
[1723723566720,0.464662,58730.0,58729.0,0.00025523]
[1723723567019,0.669793,58730.0,58729.0,0.00025523]
[1723723567211,0.549793,58730.0,58729.0,0.00025523]
[1723723567917,0.551793,58730.0,58729.0,0.00025523]
[1723723568227,0.559793,58730.0,58729.0,0.00125523]
[1723723568625,0.679793,58730.0,58729.0,0.00125523]
[1723723568925,0.255417,58724.0,58723.0,0.3608]
[1723723569217,0.085149,58717.0,58716.0,0.445951]
[1723723569519,0.085158,58711.0,58710.0,0.086079]
[1723723569814,0.085158,58711.0,58710.0,0.085159]
[1723723570809,0.085158,58711.0,58710.0,0.095159]
[1723723570810,0.086158,58711.0,58710.0,0.095159]
[1723723571617,0.086158,58711.0,58710.0,0.01]
[1723723571618,0.4658671,58711.0,58710.0,0.01]
[1723723572311,0.4668671,58711.0,58710.0,0.019]
[1723723573514,0.9778671,58711.0,58710.0,0.019]
[1723723573916,0.8927091,58711.0,58710.0,0.019]
[1723723574218,0.0873091,58711.0,58710.0,0.10416]
[1723723574620,0.1724671,58711.0,58710.0,0.10416]
[1723723577428,0.1724671,58711.0,58710.0,0.019]
[1723723577615,0.4668671,58711.0,58710.0,0.019]
[1723723580726,0.4668671,58711.0,58710.0,0.10416]
[1723723584615,0.3817091,58711.0,58710.0,0.10416]
[1723723585533,0.4668671,58711.0,58710.0,0.10416]
[1723723587428,0.1724671,58711.0,58710.0,0.10416]
[1723723588234,0.0021511,58711.0,58710.0,0.27448]
[1723723588422,0.00025545,58716.0,58715.0,0.085153]
[1723723588423,0.08540945,58716.0,58715.0,0.085153]
[1723723588619,0.00025545,58716.0,58715.0,0.58156307]
[1723723588826,0.08540645,58716.0,58715.0,0.531106]
[1723723589728,0.08540645,58716.0,58715.0,0.445953]
[1723723589931,0.17055745,58716.0,58715.0,0.445953]
[1723723590133,0.085155,58713.0,58710.0,0.4380761]
[1723723590436,0.085155,58713.0,58710.0,0.3608]
[1723723590437,0.635032,58711.0,58710.0,0.3608]
[1723723590633,0.255489,58708.0,58707.0,0.00018701]
[1723723592720,0.266489,58708.0,58707.0,0.01418701]
[1723723592926,0.351652,58708.0,58707.0,0.01418701]
[1723723593127,0.25551,58703.0,58702.0,0.33232323]
[1723723593337,0.61631,58703.0,58702.0,0.33232323]
[1723723593835,0.25551,58703.0,58702.0,0.33232323]
[1723723594043,0.255655,58703.0,58702.0,0.33232323]
[1723723594637,0.256655,58703.0,58702.0,0.34332323]
[1723723595040,0.256655,58703.0,58702.0,0.39392513]
[1723723595339,0.257655,58703.0,58702.0,0.34532323]
[1723723597229,0.172485,58703.0,58702.0,0.34532323]
[1723723597629,0.172485,58703.0,58702.0,0.49777033]
[1723723597832,0.172485,58703.0,58702.0,0.41259933]
[1723723598232,0.172485,58703.0,58702.0,0.41289082]
[1723723599233,0.172485,58703.0,58702.0,0.34532323]
[1723723599827,0.257655,58703.0,58702.0,0.41291327]
[1723723600028,0.172485,58703.0,58702.0,0.41290134]
[1723723600227,0.172485,58703.0,58702.0,0.34532323]
[1723723601332,0.087315,58703.0,58702.0,0.43049423]
[1723723601538,0.087315,58703.0,58702.0,0.79129423]
[1723723603036,0.172485,58703.0,58702.0,0.79129423]
[1723723603636,0.377655,58703.0,58702.0,0.70612323]
[1723723603842,0.292485,58703.0,58702.0,0.70612323]
[1723723604029,0.172485,58703.0,58702.0,0.70612323]
[1723723604629,0.172485,58703.0,58702.0,0.79129423]
[1723723605242,0.087315,58703.0,58702.0,0.79129423]
[1723723606430,0.172485,58703.0,58702.0,0.79129423]
[1723723607136,0.087315,58703.0,58702.0,0.79129423]
[1723723608044,0.172485,58703.0,58702.0,0.79129423]
[1723723610446,0.087315,58703.0,58702.0,0.79129423]
[1723723613148,0.172485,58703.0,58702.0,0.79129423]
[1723723613342,0.087315,58703.0,58702.0,0.79129423]
[1723723613648,0.087315,58703.0,58702.0,0.87646523]
[1723723614241,0.087315,58703.0,58702.0,0.88622611]
[1723723617642,0.087315,58703.0,58702.0,0.80105511]
[1723723617842,0.172485,58703.0,58702.0,0.79129423]
[1723723618044,0.087315,58703.0,58702.0,0.79129423]
[1723723618236,0.517655,58703.0,58702.0,0.70612323]
[1723723618753,0.517655,58703.0,58702.0,0.41285234]
[1723723619053,0.517655,58703.0,58702.0,0.34532323]
[1723723619238,0.56867918,58703.0,58702.0,0.34532323]
[1723723619441,0.56867918,58703.0,58702.0,0.41289985]
[1723723619654,0.56867918,58703.0,58702.0,0.41290163]
[1723723619846,0.56867918,58703.0,58702.0,0.34532323]
[1723723620239,0.517655,58703.0,58702.0,0.34532323]
[1723723620951,0.517655,58703.0,58702.0,0.41294627]
[1723723621352,0.517655,58703.0,58702.0,0.34532323]
[1723723622949,0.517655,58703.0,58696.0,0.3608]
[1723723622950,0.51104,58702.0,58696.0,0.08437067]
[1723723623159,0.085173,58701.0,58700.0,0.05077351]
[1723723623462,0.170368,58693.0,58692.0,0.41498397]
[1723723624157,0.170368,58693.0,58692.0,0.32979797]
[1723723624454,0.085182,58695.0,58694.0,0.08518]
[1723723624852,0.085183,58694.0,58693.0,0.08458461]
[1723723625054,0.170367,58694.0,58693.0,0.085184]
[1723723625661,0.2944,58695.0,58692.0,0.32979797]
[1723723625662,0.170368,58693.0,58692.0,0.32979797]
[1723723625845,0.171368,58693.0,58692.0,0.41498397]
[1723723626959,0.171368,58693.0,58692.0,0.32979797]
[1723723627464,0.171368,58693.0,58692.0,0.41498397]
[1723723627465,0.086184,58693.0,58692.0,0.41498397]
[1723723627849,0.086184,58693.0,58692.0,0.61773862]
[1723723628161,0.087184,58693.0,58692.0,0.41498397]
[1723723628952,0.172368,58693.0,58692.0,0.41498397]
[1723723629951,0.172368,58693.0,58692.0,0.32979797]
[1723723630151,0.257552,58693.0,58692.0,0.32979797]
[1723723630357,0.277552,58693.0,58692.0,0.39742065]
[1723723631061,0.002,58693.0,58692.0,0.48260665]
[1723723631258,0.002,58693.0,58692.0,0.41498397]
[1723723631851,0.002,58693.0,58692.0,0.50016997]
[1723723632051,0.002,58693.0,58692.0,0.41498397]
[1723723632255,0.002,58693.0,58692.0,0.50016997]
[1723723633260,0.002,58693.0,58692.0,0.86096997]
[1723723633566,0.002,58693.0,58692.0,0.94615597]
[1723723633767,0.002,58693.0,58692.0,1.00485597]
[1723723634069,0.002,58693.0,58692.0,1.08944058]
[1723723634259,0.002,58693.0,58692.0,1.03074058]
[1723723634463,0.002,58693.0,58692.0,0.94615597]
[1723723635862,0.002,58693.0,58692.0,1.03074058]
[1723723636071,0.002,58693.0,58692.0,1.14889723]
[1723723636259,0.00025545,58698.0,58697.0,0.170358]
[1723723636460,0.08543245,58698.0,58697.0,0.170358]
[1723723636664,0.08543245,58698.0,58697.0,0.085179]
[1723723636963,0.08543245,58698.0,58697.0,0.531158]
[1723723637365,0.08543245,58698.0,58697.0,0.445979]
[1723723638564,0.08543245,58698.0,58697.0,0.532158]
[1723723638565,0.08643245,58698.0,58697.0,0.532158]
[1723723638771,0.08643245,58698.0,58697.0,0.446979]
[1723723639073,0.08743245,58698.0,58697.0,0.446979]
[1723723639271,0.08743245,58698.0,58697.0,0.532158]
[1723723639456,0.21743245,58698.0,58697.0,0.086179]
[1723723639664,0.26849497,58698.0,58697.0,0.15379388]
[1723723639971,0.21743245,58698.0,58697.0,0.086179]
[1723723640175,0.21743245,58698.0,58697.0,0.15379299]
[1723723641272,0.21743245,58698.0,58697.0,0.086179]
[1723723642373,0.30260945,58698.0,58697.0,0.086179]
[1723723643573,0.30260945,58698.0,58697.0,0.15380878]
[1723723643969,0.38778645,58698.0,58697.0,0.06862978]
[1723723644176,0.38778645,58698.0,58697.0,0.001]
[1723723644377,0.45586981,58698.0,58697.0,0.001]
[1723723645261,0.54004681,58698.0,58697.0,0.001]
[1723723645562,0.47196345,58698.0,58697.0,0.001]
[1723723645764,0.255546,58695.0,58694.0,0.05074242]
[1723723646065,0.395546,58695.0,58694.0,0.05074242]
[1723723646268,0.255552,58693.0,58692.0,0.32979797]
[1723723646772,0.255552,58693.0,58692.0,0.39742775]
[1723723647462,0.47086499,58693.0,58692.0,0.39742775]
[1723723647869,0.34086499,58693.0,58692.0,0.39742775]
[1723723648366,0.34086499,58693.0,58692.0,0.39751011]
[1723723648572,0.45086499,58693.0,58692.0,0.39851011]
[1723723649278,0.45086499,58693.0,58692.0,0.33079797]
[1723723649879,0.34086499,58693.0,58692.0,0.33079797]
[1723723650573,0.35081499,58693.0,58692.0,0.33079797]
[1723723652268,0.35081499,58693.0,58692.0,0.39850561]
[1723723652773,0.27549135,58693.0,58692.0,0.39850561]
[1723723654367,0.50067535,58693.0,58692.0,0.39850561]
[1723723654565,0.41549135,58693.0,58692.0,0.39850561]
[1723723654870,0.27549135,58693.0,58692.0,0.39850561]
[1723723656374,0.27549135,58693.0,58692.0,0.33079797]
[1723723656571,0.27549135,58693.0,58692.0,0.39850561]
[1723723657171,0.24136812,58693.0,58692.0,0.39850561]
[1723723657882,0.19030735,58693.0,58692.0,0.39850561]
[1723723658068,0.19030735,58693.0,58692.0,0.48369161]
[1723723658472,0.27549135,58693.0,58692.0,0.33079797]
[1723723658675,0.19030735,58693.0,58692.0,0.41598397]